fUSD/lending_fUSD_20260221
["ID","MTS","AMOUNT","RATE_DAILY","PERIOD"]
[406289381,1771692644401,-500.0,0.0001854,2]
[406289382,1771692644411,-162.05016959,0.0001854,2]
[406289383,1771692644421,-297.46778061,0.0001854,2]
[406289384,1771692644430,-500.0,0.0001854,2]
[406289385,1771692644440,-500.0,0.0001854,2]
[406289386,1771692644451,-500.0,0.0001854,2]
[406289387,1771692644462,-500.0,0.0001854,2]
[406289388,1771692644474,-500.0,0.0001854,2]
[406289389,1771692644483,-474.05379574,0.0001854,2]
[406289390,1771692644493,-602.0,0.00018564,2]
[406289391,1771692644502,-602.0,0.00018569,2]
[406289392,1771692644511,-602.0,0.00018578,2]
[406289393,1771692644521,-602.0,0.00018597,2]
[406289394,1771692644531,-602.0,0.00018601,2]
[406289395,1771692644541,-877.0,0.00018705,2]
[406289396,1771692644551,-602.0,0.00018714,2]
[406289397,1771692644560,-1600.0,0.00018732,2]
[406289398,1771692644569,-155.81,0.00018772,2]
[406289399,1771692644579,-602.0,0.00018836,2]
[406289400,1771692644590,-602.0,0.00018854,2]
[406289401,1771692644600,-602.0,0.0001886,2]
[406289402,1771692644610,-877.0,0.00018898,2]
[406289403,1771692644621,-602.0,0.00018911,2]
[406289404,1771692644632,-602.0,0.00018927,2]
[406289405,1771692644642,-1000.0,0.00019,2]
[406289406,1771692644651,-350.0,0.00019,2]
[406289407,1771692644660,-602.0,0.00019073,2]
[406289408,1771692644670,-1000.0,0.00019088,2]
[406289409,1771692644679,-1000.0,0.00019088,2]
[406289410,1771692644689,-1000.0,0.00019088,2]
[406289411,1771692644698,-387.35182664,0.00019088,2]
[406289412,1771692644708,-1098.38505595,0.00019088,2]
[406289413,1771692644717,-500.0,0.00019088,2]
[406289414,1771692644727,-2346.81250728,0.00019152,2]
[406289415,1771692644736,-151.0,0.00019178,2]
[406289416,1771692644746,-151.000004,0.00019178,2]
[406289417,1771692644755,-151.0,0.00019178,2]
[406289418,1771692644766,-151.0,0.00019178,2]
[406289419,1771692644775,-151.0,0.00019178,2]
[406289420,1771692644786,-151.0,0.00019178,2]
[406289421,1771692644796,-150.0,0.00019178,2]
[406289422,1771692644806,-1014.03988287,0.00019636,2]
[406289423,1771692644817,-528.2508627,0.00019636,2]
[406289424,1771692644826,-1500.0,0.00019636,2]
[406289425,1771692644836,-877.0,0.00019721,2]
[406289426,1771692644847,-250.0,0.00019726,2]
[406289427,1771692644862,-1000.0,0.00019754,2]
[406289428,1771692644871,-877.0,0.00019754,2]
[406289429,1771692644882,-969.852677,0.00019773,2]
[406289430,1771692644892,-886.3153012,0.0001995,15]
[406289431,1771692644902,-2805.23262734,0.0002,120]
[406289432,1771692644912,-2000.0,0.00020184,2]
[406289433,1771692644922,-265.93928549,0.00020274,2]
[406289434,1771692644933,-8176.0017536,0.0002041,2]
[406289435,1771692644942,-2221.2406189,0.00020418,2]
[406289436,1771692644952,-4313.5955412,0.00020562,2]
[406289437,1771692644961,-793.67865987,0.00020732,2]
[406289438,1771692644971,-518.0,0.00020923,6]
[406289439,1771692644980,-159.0,0.00021022,3]
[406289440,1771692644990,-962.4932639,0.00021142,2]
[406289441,1771692645000,-969.852677,0.00021584,2]
[406289442,1771692645009,-150.0,0.000217,7]
[406289443,1771692645019,-182.03123454,0.00021839,2]
[406289444,1771692645172,-5000.0,0.00021918,2]
[406289445,1771692645182,-11011.11,0.00022,2]
[406289446,1771692645194,-76308.1371995,0.0002203,2]
[406289447,1771692645203,-378.48526402,0.00022755,2]
[406289448,1771692645212,-8176.0017536,0.00022855,2]
[406289449,1771692645221,-2221.2406189,0.00022871,2]
[406289450,1771692645230,-3980.19,0.0002289,2]
[406289451,1771692645238,-17026.6468739,0.00022937,2]
[406289452,1771692645247,-160.0,0.00023,2]
[406289453,1771692645255,-600.0,0.0002313,2]
[406289454,1771692645264,-969.852677,0.00023395,2]
[406289455,1771692645273,-269.46,0.000238,7]
[406289456,1771692645282,-556.498963,0.0002447,30]
[406289457,1771692645291,-495.20345281,0.0002455,2]
[406289458,1771692645300,-693.3919763,0.0002455,2]
[406289459,1771692645309,-500.0,0.0002455,2]
[406289460,1771692645318,-500.0,0.0002455,2]
[406289461,1771692645327,-500.0,0.0002455,2]
[406289462,1771692645337,-500.0,0.0002455,2]
[406289463,1771692645346,-500.0,0.0002455,2]
[406289464,1771692645355,-500.0,0.0002455,2]
[406289465,1771692645364,-500.0,0.0002455,2]
[406289466,1771692645373,-500.0,0.0002455,2]
[406289467,1771692645382,-500.0,0.0002455,2]
[406289468,1771692645391,-500.0,0.0002455,2]
[406289469,1771692645399,-500.0,0.0002455,2]
[406289470,1771692645409,-719.04747942,0.00024605,2]
[406289471,1771692645419,-151.0,0.00024658,2]
[406289472,1771692645429,-151.0,0.00024658,2]
[406289473,1771692645439,-151.0,0.00024658,2]
[406289474,1771692645448,-745.65223616,0.0002466,2]
[406289475,1771692645457,-773.2413689,0.00024715,2]
[406289476,1771692645466,-168.47,0.00024719,14]
[406289477,1771692645475,-801.85129955,0.0002477,2]
[406289478,1771692645484,-831.51979763,0.00024825,2]
[406289479,1771692645493,-862.28603014,0.0002488,2]
[406289480,1771692645502,-894.19061326,0.00024935,2]
[406289481,1771692645511,-424.06111171,0.0002499,2]
[406289482,1771692645563,-503.21455424,0.0002499,2]
[406289483,1771692645575,-961.58486559,0.00025045,2]
[406289484,1771692645584,-997.16350561,0.000251,2]
[406289485,1771692645593,-159.0,0.00025244,3]
[406289486,1771692645603,-754.55417036,0.00025299,2]
[406289487,1771692645614,-7421.44758324,0.00025299,2]
[406289488,1771692645623,-11011.11,0.000253,2]
[406289489,1771692645633,-191.41,0.00025322,2]
[406289491,1771692645642,-2221.2406189,0.00025323,2]
[406289493,1771692645651,-258.73,0.00025542,14]
[406289495,1771692645661,-518.0,0.00025846,10]
[406289497,1771692645670,-245.73,0.00026245,14]
[406289499,1771692645679,-182.03123454,0.00026469,2]
[406289501,1771692645688,-1000.0,0.000267,2]
[406289503,1771692645696,-300.0,0.00027397,2]
[406289505,1771692645705,-151.0,0.00027397,2]
[406289507,1771692645714,-151.0,0.00027397,2]
[406289509,1771692645723,-217.1552,0.00027397,2]
[406289511,1771692645732,-202.336009,0.00027397,2]
[406289513,1771692645740,-1464.461842,0.00027397,2]
[406289515,1771692645749,-1464.461842,0.00027397,2]
[406289516,1771692645759,-1464.461842,0.00027397,2]
[406289517,1771692645768,-1464.461842,0.00027397,2]
[406289518,1771692645777,-1000.0,0.00027397,20]
[406289519,1771692645785,-584.41785906,0.00028785,2]
[406289520,1771692645795,-5531.0,0.000289,5]
[406289521,1771692645805,-2000.0,0.00029,2]
[406289522,1771692645815,-265.56589159,0.00029127,2]
[406289523,1771692645824,-1000.0,0.00029127,2]
[406289524,1771692645834,-600.0,0.00029444,2]
[406289525,1771692645843,-159.0,0.00029465,3]
[406289526,1771692645853,-1000.0,0.0003,120]
[406289527,1771692645861,-766.0,0.0003,120]
[406289528,1771692645870,-160.93,0.00030411,120]
[406289529,1771692645879,-518.0,0.00030769,15]
[406289530,1771692645889,-11011.11,0.000308,2]
[406289531,1771692645898,-415.6,0.000309,30]
[406289532,1771692645906,-182.03123454,0.000311,2]
[406289533,1771692645915,-35882.0,0.00031154,2]
[406289534,1771692645925,-184.88534917,0.00031442,2]
[406289535,1771692645934,-191.41,0.00031652,2]
[406289536,1771692645945,-150.0,0.00031652,2]
[406289537,1771692645956,-1338.0,0.00031725,2]
[406289538,1771692645965,-3493.0,0.00031725,2]
[406289539,1771692645974,-618.0,0.00031725,2]
[406289540,1771692645984,-1039.0,0.00031725,2]
[406289541,1771692645994,-1276.0,0.00031725,2]
[406289542,1771692646003,-1209.0,0.00031725,2]
[406289543,1771692646012,-5976.0,0.00031725,2]
[406289544,1771692646022,-2453.0,0.00031725,2]
[406289545,1771692646031,-1000.0,0.00032,120]
[406289546,1771692646041,-1000.0,0.00032,120]
[406289547,1771692646052,-1000.0,0.00032,120]
[406289548,1771692646061,-1000.0,0.00032,120]
[406289549,1771692646071,-2000.0,0.000327,2]
[406289550,1771692646080,-1128.51,0.00033,2]
[406289551,1771692646090,-543.717502,0.00033,8]
[406289552,1771692646099,-162.0,0.00033687,3]
[406289553,1771692646110,-159.0,0.00033687,3]
[406289554,1771692646122,-151.0,0.00033687,3]
[406289555,1771692646132,-160.93,0.00034212,120]
[406289556,1771692646142,-154.65,0.000344,14]
[406289557,1771692646151,-287.16,0.000344,14]
[406289558,1771692646160,-3980.19,0.00034548,2]
[406289559,1771692646169,-1338.0,0.00034725,2]
[406289560,1771692646179,-3493.0,0.00034725,2]
[406289561,1771692646188,-618.0,0.00034725,2]
[406289562,1771692646198,-1039.0,0.00034725,2]
[406289563,1771692646207,-1276.0,0.00034725,2]
[406289564,1771692646219,-1209.0,0.00034725,2]
[406289565,1771692646228,-5976.0,0.00034725,2]
[406289566,1771692646238,-2453.0,0.00034725,2]
[406289567,1771692646247,-331.31,0.00035168,2]
[406289568,1771692646256,-256.78433642,0.0003561,120]
[406289569,1771692646265,-151.0,0.00035616,31]
[406289570,1771692646274,-252.112136,0.00035616,31]
[406289571,1771692646283,-331.31,0.00035631,2]
[406289572,1771692646292,-518.0,0.00035692,19]
[406289573,1771692646301,-11011.11,0.000357,2]
[406289574,1771692646310,-182.03123454,0.0003573,2]
[406289575,1771692646321,-2538.0,0.00035946,5]
[406289576,1771692646330,-250.0,0.00036,120]
[406289577,1771692646339,-331.31,0.00036093,2]
[406289578,1771692646348,-1590.0,0.000364,2]
[406289579,1771692646357,-331.31,0.00036556,2]
[406289580,1771692646366,-358.23,0.00036652,2]
[406289581,1771692646375,-467.0,0.00036806,2]
[406289582,1771692646384,-331.31,0.00037019,2]
[406289583,1771692646393,-1635.298,0.00037084,47]
[406289584,1771692646403,-155.14,0.00037084,47]
[406289585,1771692646412,-269.46,0.000371,14]
[406289586,1771692646422,-1128.51,0.000372,2]
[406289587,1771692646431,-331.31,0.00037482,2]
[406289588,1771692646441,-358.23,0.00037545,2]
[406289589,1771692646450,-1338.0,0.00037725,2]
[406289590,1771692646460,-3493.0,0.00037725,2]
[406289591,1771692646469,-618.0,0.00037725,2]
[406289592,1771692646478,-1039.0,0.00037725,2]
[406289593,1771692646488,-1276.0,0.00037725,2]
[406289594,1771692646497,-1209.0,0.00037725,2]
[406289595,1771692646506,-5976.0,0.00037725,2]
[406289596,1771692646515,-2453.0,0.00037725,2]
[406289597,1771692646525,-159.0,0.00037909,3]
[406289598,1771692646534,-331.31,0.00037944,2]
[406289599,1771692646544,-191.41,0.00037982,2]
[406289600,1771692646554,-1000.0,0.00038,120]
[406289601,1771692646564,-160.0,0.00038,120]
[406289602,1771692646574,-160.93,0.00038014,120]
[406289603,1771692646583,-999.0,0.00038356,120]
[406289604,1771692646592,-151.0,0.00038356,120]
[406289605,1771692646602,-151.0,0.00038356,120]
[406289606,1771692646610,-151.0,0.00038356,120]
[406289607,1771692646619,-241.90127,0.00038356,120]
[406289608,1771692646628,-331.31,0.00038407,2]
[406289609,1771692646637,-358.23,0.00038439,2]
[406289610,1771692646647,-11011.11,0.000385,2]
[406289611,1771692646656,-350.0,0.000388,120]
[406289612,1771692646666,-151.26929476,0.00038834,2]
[406289613,1771692646675,-331.31,0.0003887,2]
[406289614,1771692646684,-277.114,0.00038888,30]
[406289615,1771692646693,-150.0,0.00039,120]
[406289616,1771692646702,-331.31,0.00039333,2]
[406289617,1771692646717,-331.31,0.00039795,2]
[406289618,1771692646731,-1128.51,0.000398,30]
[406289619,1771692646741,-554.0,0.00039824,30]
[406289620,1771692646750,-438.0,0.00039824,30]
[406289621,1771692646760,-152.0,0.0004,120]
[406289622,1771692646770,-287.16,0.0004,14]
[406289623,1771692646779,-150.0,0.0004,120]
[406289624,1771692646789,-1500.0,0.0004,120]
[406289625,1771692646798,-400.0,0.0004,120]
[406289626,1771692646808,-751.49,0.0004,120]
[406289627,1771692646817,-1590.30811988,0.000401,2]
[406289628,1771692646826,-331.31,0.00040258,2]
[406289629,1771692646835,-182.03123454,0.0004036,28]
[406289630,1771692646845,-154.65,0.000404,14]
[406289631,1771692646854,-180.0,0.00040463,120]
[406289632,1771692646864,-180.0,0.00040463,120]
[406289633,1771692646874,-183.73333219,0.00040463,120]
[406289634,1771692646883,-152.0,0.000406,120]
[406289635,1771692646893,-518.0,0.00040615,24]
[406289636,1771692646902,-331.31,0.00040721,2]
[406289637,1771692646912,-1338.0,0.00040725,2]
[406289638,1771692646921,-3493.0,0.00040725,2]
[406289639,1771692646931,-618.0,0.00040725,2]
[406289640,1771692646940,-1039.0,0.00040725,2]
[406289641,1771692646951,-1276.0,0.00040725,2]
[406289642,1771692646960,-1209.0,0.00040725,2]
[406289643,1771692646969,-5976.0,0.00040725,2]
[406289644,1771692646979,-2453.0,0.00040725,2]
[406289645,1771692646988,-72885.0,0.0004095,60]
[406289646,1771692646997,-151.0,0.0004095,120]
[406289647,1771692647007,-151.0,0.0004095,120]
[406289648,1771692647016,-151.0,0.0004095,120]
[406289649,1771692647026,-151.0,0.0004095,120]
[406289650,1771692647035,-151.0,0.0004095,120]
[406289651,1771692647052,-151.0,0.0004095,120]
[406289652,1771692647062,-151.0,0.0004095,120]
[406289653,1771692647071,-151.0,0.0004095,120]
[406289654,1771692647081,-151.0,0.0004095,120]
[406289655,1771692647092,-215.973522,0.0004095,60]
[406289656,1771692647101,-159.06019,0.0004095,120]
[406289657,1771692647111,-159.06019,0.0004095,120]
[406289658,1771692647123,-159.06019,0.0004095,120]
[406289659,1771692647132,-159.06019,0.0004095,120]
[406289660,1771692647141,-151.0,0.0004095,120]
[406289661,1771692647150,-151.0,0.0004095,120]
[406289662,1771692647160,-151.0,0.0004095,120]
[406289663,1771692647169,-151.0,0.0004095,120]
[406289664,1771692647179,-151.0,0.0004095,120]
[406289665,1771692647188,-151.0,0.0004095,120]
[406289666,1771692647198,-1464.461842,0.0004095,120]
[406289667,1771692647207,-1464.461842,0.0004095,120]
[406289668,1771692647216,-1464.461842,0.0004095,120]
[406289669,1771692647225,-1464.461842,0.0004095,120]
[406289670,1771692647235,-151.0,0.0004095,120]
[406289671,1771692647244,-151.0,0.0004095,120]
[406289672,1771692647253,-151.0,0.0004095,120]
[406289673,1771692647262,-494.080551,0.0004095,120]
[406289674,1771692647270,-494.080551,0.0004095,120]
[406289675,1771692647280,-494.080551,0.0004095,120]
[406289676,1771692647290,-494.080551,0.0004095,120]
[406289677,1771692647300,-150.0,0.00041,120]
[406289678,1771692647309,-500.0,0.00041,120]
[406289679,1771692647318,-842.0,0.00041096,120]
[406289680,1771692647329,-4472.75,0.00041096,120]
[406289681,1771692647338,-30000.0,0.00041096,120]
[406289682,1771692647347,-155.185005,0.00041096,120]
[406289683,1771692647356,-151.0,0.00041096,120]
[406289684,1771692647365,-151.0,0.00041096,120]
[406289685,1771692647375,-151.0,0.00041096,120]
[406289686,1771692647384,-151.0,0.00041096,120]
[406289687,1771692647393,-151.0,0.00041096,120]
[406289688,1771692647403,-151.0,0.00041096,120]
[406289689,1771692647413,-151.0,0.00041096,120]
[406289690,1771692647423,-202.01281391,0.00041096,120]
[406289691,1771692647432,-151.0,0.00041096,120]
[406289692,1771692647441,-168.284046,0.00041096,120]
[406289693,1771692647451,-151.0,0.00041096,120]
[406289694,1771692647460,-151.0,0.00041096,120]
[406289695,1771692647470,-151.0,0.00041096,120]
[406289696,1771692647483,-151.0,0.00041096,120]
[406289697,1771692647492,-174.962031,0.00041096,120]
[406289698,1771692647501,-151.0,0.00041096,120]
[406289699,1771692647511,-151.0,0.00041096,120]
[406289700,1771692647521,-151.0,0.00041096,120]
[406289701,1771692647530,-151.0,0.00041096,120]
[406289702,1771692647539,-151.0,0.00041096,120]
[406289703,1771692647549,-151.0,0.00041096,120]
[406289704,1771692647558,-151.0,0.00041096,120]
[406289705,1771692647569,-151.0,0.00041096,120]
[406289706,1771692647579,-151.0,0.00041096,120]
[406289707,1771692647589,-151.0,0.00041096,120]
[406289708,1771692647599,-151.0,0.00041096,120]
[406289709,1771692647608,-151.0,0.00041096,120]
[406289710,1771692647618,-151.0,0.00041096,120]
[406289711,1771692647627,-151.0,0.00041096,120]
[406289712,1771692647636,-151.0,0.00041096,120]
[406289713,1771692647645,-151.0,0.00041096,120]
[406289714,1771692647654,-157.419491,0.00041096,120]
[406289715,1771692647663,-157.419491,0.00041096,120]
[406289716,1771692647673,-157.419491,0.00041096,120]
[406289717,1771692647682,-220.317592,0.00041096,120]
[406289718,1771692647691,-157.419491,0.00041096,120]
[406289719,1771692647700,-151.0,0.00041096,120]
[406289720,1771692647709,-151.0,0.00041096,120]
[406289721,1771692647718,-151.0,0.00041096,120]
[406289722,1771692647727,-151.0,0.00041096,120]
[406289723,1771692647737,-151.0,0.00041096,120]
[406289724,1771692647746,-151.0,0.00041096,120]
[406289725,1771692647755,-151.0,0.00041096,120]
[406289726,1771692647764,-151.0,0.00041096,120]
[406289727,1771692647773,-151.0,0.00041096,120]
[406289728,1771692647782,-152.737315,0.00041096,120]
[406289729,1771692647791,-225.281653,0.00041096,120]
[406289730,1771692647801,-225.281653,0.00041096,120]
[406289731,1771692647810,-225.281653,0.00041096,120]
[406289732,1771692647819,-225.281653,0.00041096,120]
[406289733,1771692647828,-154.98056,0.00041096,120]
[406289734,1771692647837,-367.918694,0.00041096,120]
[406289735,1771692647846,-367.918694,0.00041096,120]
[406289736,1771692647855,-367.918694,0.00041096,120]
[406289737,1771692647864,-367.918694,0.00041096,120]
[406289738,1771692647874,-151.0,0.00041096,120]
[406289739,1771692647883,-151.0,0.00041096,120]
[406289740,1771692647893,-151.0,0.00041096,120]
[406289741,1771692647902,-151.0,0.00041096,120]
[406289742,1771692647911,-151.0,0.00041096,120]
[406289743,1771692647921,-151.0,0.00041096,120]
[406289744,1771692647930,-151.0,0.00041096,120]
[406289745,1771692647939,-151.0,0.00041096,120]
[406289746,1771692647948,-151.0,0.00041096,120]
[406289747,1771692647957,-154.123264,0.00041096,120]
[406289748,1771692647966,-292.052725,0.00041096,120]
[406289749,1771692647975,-151.0,0.00041096,120]
[406289750,1771692647985,-151.0,0.00041096,120]
[406289751,1771692647994,-292.052725,0.00041096,120]
[406289752,1771692648003,-292.052725,0.00041096,120]
[406289753,1771692648013,-292.052725,0.00041096,120]
[406289754,1771692648022,-151.0,0.00041096,120]
[406289755,1771692648033,-180.346075,0.00041096,120]
[406289756,1771692648045,-151.0,0.00041096,120]
[406289757,1771692648055,-151.0,0.00041096,120]
[406289758,1771692648064,-151.0,0.00041096,120]
[406289759,1771692648076,-151.0,0.00041096,120]
[406289760,1771692648086,-151.0,0.00041096,120]
[406289761,1771692648096,-151.0,0.00041096,120]
[406289762,1771692648106,-151.0,0.00041096,120]
[406289763,1771692648115,-151.0,0.00041096,120]
[406289764,1771692648126,-151.0,0.00041096,120]
[406289765,1771692648135,-151.0,0.00041096,120]
[406289766,1771692648145,-151.0,0.00041096,120]
[406289767,1771692648154,-151.0,0.00041096,120]
[406289768,1771692648163,-151.0,0.00041096,120]
[406289769,1771692648172,-153.847155,0.00041096,120]
[406289770,1771692648181,-193.361754,0.00041096,120]
[406289771,1771692648191,-193.361754,0.00041096,120]
[406289772,1771692648199,-193.361754,0.00041096,120]
[406289773,1771692648208,-193.361754,0.00041096,120]
[406289774,1771692648217,-193.361754,0.00041096,120]
[406289775,1771692648230,-193.361754,0.00041096,120]
[406289776,1771692648239,-193.361754,0.00041096,120]
[406289777,1771692648248,-193.361754,0.00041096,120]
[406289778,1771692648257,-151.0,0.00041096,120]
[406289779,1771692648266,-151.0,0.00041096,120]
[406289780,1771692648275,-151.0,0.00041096,120]
[406289781,1771692648285,-151.0,0.00041096,120]
[406289782,1771692648294,-151.0,0.00041096,120]
[406289783,1771692648303,-151.0,0.00041096,120]
[406289784,1771692648311,-151.0,0.00041096,120]
[406289785,1771692648319,-151.0,0.00041096,120]
[406289786,1771692648329,-188.795545,0.00041096,120]
[406289787,1771692648337,-188.795545,0.00041096,120]
[406289788,1771692648540,-188.795545,0.00041096,120]
[406289789,1771692648550,-188.795545,0.00041096,120]
[406289790,1771692648559,-151.0,0.00041096,120]
[406289791,1771692648570,-151.0,0.00041096,120]
[406289792,1771692648579,-188.795545,0.00041096,120]
[406289793,1771692648589,-188.795545,0.00041096,120]
[406289794,1771692648599,-188.795545,0.00041096,120]
[406289795,1771692648609,-188.795545,0.00041096,120]
[406289796,1771692648619,-151.0,0.00041096,120]
[406289797,1771692648630,-151.0,0.00041096,120]
[406289798,1771692648639,-151.0,0.00041096,120]
[406289799,1771692648649,-151.0,0.00041096,120]
[406289800,1771692648659,-151.0,0.00041096,120]
[406289801,1771692648670,-151.0,0.00041096,120]
[406289802,1771692648680,-151.0,0.00041096,120]
[406289803,1771692648689,-151.0,0.00041096,120]
[406289804,1771692648698,-154.838886,0.00041096,120]
[406289805,1771692648707,-151.0,0.00041096,120]
[406289806,1771692648716,-151.0,0.00041096,120]
[406289807,1771692648725,-151.0,0.00041096,120]
[406289808,1771692648734,-151.0,0.00041096,120]
[406289809,1771692648742,-151.0,0.00041096,120]
[406289810,1771692648752,-151.0,0.00041096,120]
[406289811,1771692648760,-151.0,0.00041096,120]
[406289812,1771692648769,-151.0,0.00041096,120]
[406289813,1771692648779,-151.0,0.00041096,120]
[406289814,1771692648787,-151.0,0.00041096,120]
[406289815,1771692648796,-151.0,0.00041096,120]
[406289816,1771692648806,-151.0,0.00041096,120]
[406289817,1771692648815,-151.0,0.00041096,120]
[406289818,1771692648823,-151.0,0.00041096,120]
[406289819,1771692648831,-279.519131,0.00041096,120]
[406289820,1771692648840,-151.0,0.00041096,120]
[406289821,1771692648848,-151.0,0.00041096,120]
[406289822,1771692648858,-151.0,0.00041096,120]
[406289823,1771692648868,-239.740726,0.00041096,120]
[406289824,1771692648877,-151.0,0.00041096,120]
[406289825,1771692648886,-239.740726,0.00041096,120]
[406289826,1771692648896,-243.3,0.00041096,120]
[406289827,1771692648906,-816.299301,0.00041096,120]
[406289828,1771692648915,-151.0,0.00041096,120]
[406289829,1771692648925,-151.0,0.00041096,120]
[406289830,1771692648934,-151.0,0.00041096,120]
[406289831,1771692648943,-151.0,0.00041096,120]
[406289832,1771692648952,-243.3,0.00041096,120]
[406289833,1771692648960,-151.0,0.00041096,120]
[406289834,1771692648970,-239.740726,0.00041096,120]
[406289835,1771692648979,-816.299301,0.00041096,120]
[406289836,1771692648988,-151.0,0.00041096,120]
[406289837,1771692648997,-243.3,0.00041096,120]
[406289838,1771692649006,-239.740726,0.00041096,120]
[406289839,1771692649015,-816.299301,0.00041096,120]
[406289840,1771692649025,-243.3,0.00041096,120]
[406289841,1771692649034,-816.299301,0.00041096,120]
[406289842,1771692649046,-151.0,0.00041096,120]
[406289843,1771692649055,-151.0,0.00041096,120]
[406289844,1771692649064,-151.0,0.00041096,120]
[406289845,1771692649073,-151.0,0.00041096,120]
[406289846,1771692649084,-151.0,0.00041096,120]
[406289847,1771692649093,-243.923511,0.00041096,120]
[406289848,1771692649102,-151.0,0.00041096,120]
[406289849,1771692649111,-151.0,0.00041096,120]
[406289850,1771692649122,-151.0,0.00041096,120]
[406289851,1771692649131,-733.31416,0.00041096,120]
[406289852,1771692649140,-733.31416,0.00041096,120]
[406289853,1771692649149,-733.31416,0.00041096,120]
[406289854,1771692649159,-733.31416,0.00041096,120]
[406289855,1771692649168,-151.0,0.00041096,120]
[406289856,1771692649177,-151.0,0.00041096,120]
[406289857,1771692649186,-151.0,0.00041096,120]
[406289858,1771692649195,-151.0,0.00041096,120]
[406289859,1771692649205,-153.428221,0.00041096,120]
[406289860,1771692649214,-481.854246,0.00041096,120]
[406289861,1771692649224,-151.0,0.00041096,120]
[406289862,1771692649232,-481.854246,0.00041096,120]
[406289863,1771692649241,-151.0,0.00041096,120]
[406289864,1771692649250,-481.854246,0.00041096,120]
[406289865,1771692649259,-151.0,0.00041096,120]
[406289866,1771692649268,-481.854246,0.00041096,120]
[406289867,1771692649278,-169.969697,0.00041096,120]
[406289868,1771692649287,-151.0,0.00041096,120]
[406289869,1771692649295,-151.0,0.00041096,120]
[406289870,1771692649304,-481.854246,0.00041096,120]
[406289871,1771692649313,-481.854246,0.00041096,120]
[406289872,1771692649322,-205.494273,0.00041096,120]
[406289873,1771692649331,-481.854246,0.00041096,120]
[406289874,1771692649340,-481.854246,0.00041096,120]
[406289875,1771692649349,-151.0,0.00041096,120]
[406289876,1771692649358,-151.0,0.00041096,120]
[406289877,1771692649367,-151.0,0.00041096,120]
[406289878,1771692649375,-151.0,0.00041096,120]
[406289879,1771692649384,-151.0,0.00041096,120]
[406289880,1771692649393,-151.0,0.00041096,120]
[406289881,1771692649403,-151.0,0.00041096,120]
[406289882,1771692649412,-151.0,0.00041096,120]
[406289883,1771692649421,-151.0,0.00041096,120]
[406289884,1771692649430,-151.0,0.00041096,120]
[406289885,1771692649439,-165.626757,0.00041096,120]
[406289886,1771692649448,-151.0,0.00041096,120]
[406289887,1771692649457,-165.626757,0.00041096,120]
[406289888,1771692649466,-151.0,0.00041096,120]
[406289889,1771692649475,-333.635496,0.00041096,120]
[406289890,1771692649484,-333.635496,0.00041096,120]
[406289891,1771692649493,-165.626757,0.00041096,120]
[406289892,1771692649502,-151.0,0.00041096,120]
[406289893,1771692649511,-165.626757,0.00041096,120]